[Event "EYTCC U12 Girls 2019"]
[Site "Pardubice"]
[Date "2019.07.12"]
[Round "2.20"]
[White "Goriachkina, Oksana"]
[Black "Janouskova, Adela"]
[Result "1/2-1/2"]
[ECO "D37"]
[WhiteElo "1417"]
[BlackElo "1200"]
[Annotator "NA"]
[PlyCount "117"]
[EventDate "2019.07.11"]
[EventType "swiss"]
[EventCountry "CZE"]
[SourceTitle "playchess.com"]
[Source "ChessBase"]
[SourceQuality "1"]
[WhiteTeam "Russia"]
[BlackTeam "Czech Republic"]
[WhiteTeamCountry "RUS"]
[BlackTeamCountry "CZE"]
[TimeControl "40/5400+30:1800+30"]

1. d4 {[%emt 0:00:00]} d5 {[%emt 0:00:00]} 2. c4 {[%emt 0:00:00]} e6 {[%emt 0:00:00]} 3. Nf3 {[%emt 0:00:00]} Nf6 {[%emt 0:00:03]} 4. Bf4 {[%emt 0:01:06]} Be7 {[%emt 0:00:43]} 5. Nc3 {[%emt 0:00:16]} O-O {[%emt 0:00:38]} 6. e3 {[%emt 0:00:05]} Nbd7 {[%emt 0:01:50]} 7. Bd3 {[%emt 0:02:51]} dxc4 {[%emt 0:03:16]} 8. Bxc4 {[%emt 0:00:08]} a6 {[%emt 0:03:23]} 9. O-O {[%emt 0:01:08]} c5 {[%emt 0:01:44]} 10. Ne5 {[%emt 0:05:17]} cxd4 {[%emt 0:02:23]} 11. Qxd4 {[%emt 0:01:47]} Bc5 {[%emt 0:03:46]} 12. Qd2 {[%emt 0:02:29]} Nxe5 {[%emt 0:01:52]} 13. Qxd8 {[%emt 0:00:35]} Nf3+ {[%emt 0:02:41]} 14. gxf3 {[%emt 0:00:12]} Rxd8 {[%emt 0:00:05]} 15. Rfd1 {[%emt 0:01:01]} Bd7 {[%emt 0:01:27]} 16. Bg5 {[%emt 0:06:49]} Bc6 {[%emt 0:10:27]} 17. e4 {[%emt 0:12:26]} Rxd1+ {[%emt 0:01:39]} 18. Rxd1 {[%emt 0:00:12]} Nd7 {[%emt 0:02:49]} 19. Bf4 {[%emt 0:06:37]} Nb6 {[%emt 0:10:49]} 20. Bb3 {[%emt 0:01:45]} h6 {[%emt 0:01:17]} 21. Be3 {[%emt 0:05:42]} Bxe3 {[%emt 0:01:34]} 22. fxe3 {[%emt 0:00:10]} Nd7 {[%emt 0:01:34]} 23. Kf2 {[%emt 0:01:37]} Nf6 {[%emt 0:06:29]} 24. Ne2 {[%emt 0:06:24]} b5 {[%emt 0:03:59]} 25. Nd4 {[%emt 0:06:08]} Bb7 {[%emt 0:01:20]} 26. a3 {[%emt 0:02:52]} Re8 {[%emt 0:03:02]} 27. Ke2 {[%emt 0:16:21]} Re7 {[%emt 0:02:26]} 28. Rc1 {[%emt 0:00:39]} Re8 {[%emt 0:01:35]} 29. Rc7 {[%emt 0:01:34]} Rb8 {[%emt 0:03:49]} 30. Ba2 {[%emt 0:08:14]} Ne8 {[%emt 0:03:39]} 31. Rc1 {[%emt 0:02:12]} Rc8 {[%emt 0:01:09]} 32. Rxc8 {[%emt 0:01:17]} Bxc8 {[%emt 0:00:27]} 33. Kd3 {[%emt 0:02:17]} Bb7 {[%emt 0:03:54]} 34. Kc3 {[%emt 0:01:10]} Kf8 {[%emt 0:01:14]} 35. Nb3 {[%emt 0:02:45]} Ke7 {[%emt 0:03:18]} 36. Nc5 {[%emt 0:00:20]} Bc8 {[%emt 0:00:45]} 37. Kd4 {[%emt 0:00:22]} Nf6 {[%emt 0:00:55]} 38. Nd3 {[%emt 0:00:26]} Nd7 {[%emt 0:00:44]} 39. Kc3 {[%emt 0:00:39]} Kd6 {[%emt 0:01:27]} 40. Kd4 {[%emt 0:00:21]} Bb7 {[%emt 0:00:55]} 41. b4 {[%emt 0:30:53]} Ba8 {[%emt 0:35:32]} 42. Bb3 {[%emt 0:00:14]} Bc6 {[%emt 0:01:17]} 43. Bc2 {[%emt 0:00:41]} Kc7 {[%emt 0:01:47]} 44. Bd1 {[%emt 0:00:50]} Kd6 {[%emt 0:00:11]} 45. Bb3 {[%emt 0:00:45]} Kc7 {[%emt 0:00:22]} 46. Ba2 {[%emt 0:00:58]} Kd6 {[%emt 0:00:34]} 47. Bb3 {[%emt 0:00:46]} Kc7 {[%emt 0:00:15]} 48. Bc2 {[%emt 0:00:55]} Kd6 {[%emt 0:01:16]} 49. Bd1 {[%emt 0:00:10]} Kc7 {[%emt 0:00:43]} 50. Bc2 {[%emt 0:00:33]} Kd6 {[%emt 0:00:29]} 51. Bb1 {[%emt 0:00:08]} Kc7 {[%emt 0:00:27]} 52. Ba2 {[%emt 0:00:56]} Kd6 {[%emt 0:00:17]} 53. Bb3 {[%emt 0:00:04]} Kc7 {[%emt 0:02:14]} 54. Bd1 {[%emt 0:01:53]} Kd6 {[%emt 0:00:11]} 55. Be2 {[%emt 0:00:09]} Kc7 {[%emt 0:04:26]} 56. Bf1 {[%emt 0:00:50]} Kd6 {[%emt 0:00:39]} 57. Bg2 {[%emt 0:00:11]} Kc7 {[%emt 0:02:12]} 58. Bh1 {[%emt 0:01:01]} Kd6 {[%emt 0:00:00]} 59. Bg2 {[%emt 0:00:00] Ke5+} 1/2-1/2

[Event "EYTCC U12 Girls 2019"]
[Site "Pardubice"]
[Date "2019.07.12"]
[Round "2.21"]
[White "Veverkova, Dorota"]
[Black "Siekanska, Maria"]
[Result "0-1"]
[ECO "B23"]
[WhiteElo "1348"]
[BlackElo "1561"]
[Annotator "NA"]
[PlyCount "86"]
[EventDate "2019.07.11"]
[EventType "swiss"]
[EventCountry "CZE"]
[SourceTitle "playchess.com"]
[Source "ChessBase"]
[SourceQuality "1"]
[WhiteTeam "Czech Republic"]
[BlackTeam "Poland"]
[WhiteTeamCountry "CZE"]
[BlackTeamCountry "POL"]
[TimeControl "40/5400+30:1800+30"]

1. e4 {[%emt 0:00:00]} c5 {[%emt 0:00:00]} 2. Nc3 {[%emt 0:00:00]} e6 {[%emt 0:00:00]} 3. f4 {[%emt 0:00:00]} d6 {[%emt 0:00:14]} 4. Nf3 {[%emt 0:00:53]} Nc6 {[%emt 0:00:21]} 5. d3 {[%emt 0:01:08]} Nf6 {[%emt 0:01:15]} 6. Be2 {[%emt 0:00:38]} Be7 {[%emt 0:01:04]} 7. O-O {[%emt 0:01:00]} O-O {[%emt 0:00:43]} 8. Qe1 {[%emt 0:01:30]} a6 {[%emt 0:08:15]} 9. Qg3 {[%emt 0:05:02]} Re8 {[%emt 0:07:31]} 10. Kh1 {[%emt 0:02:35]} b5 {[%emt 0:04:19]} 11. a3 {[%emt 0:02:03]} Bb7 {[%emt 0:02:06]} 12. Be3 {[%emt 0:03:20]} Rb8 {[%emt 0:08:18]} 13. Rg1 {[%emt 0:06:18]} d5 {[%emt 0:01:56]} 14. e5 {[%emt 0:05:39]} d4 {[%emt 0:01:02]} 15. exf6 {[%emt 0:01:18]} Bxf6 {[%emt 0:00:14]} 16. Bd2 {[%emt 0:02:50]} dxc3 {[%emt 0:00:12]} 17. Bxc3 {[%emt 0:00:06]} Nd4 {[%emt 0:02:36]} 18. Nxd4 {[%emt 0:01:30]} cxd4 {[%emt 0:00:40]} 19. Bd2 {[%emt 0:00:58]} Rc8 {[%emt 0:01:34]} 20. Rac1 {[%emt 0:01:14]} Re7 {[%emt 0:05:26]} 21. Bf3 {[%emt 0:01:45]} Rec7 {[%emt 0:00:46]} 22. Bxb7 {[%emt 0:01:22]} Rxb7 {[%emt 0:00:06]} 23. c3 {[%emt 0:01:33]} Rbc7 {[%emt 0:05:04]} 24. Qe1 {[%emt 0:02:20]} dxc3 {[%emt 0:01:34]} 25. Bxc3 {[%emt 0:01:50]} Qxd3 {[%emt 0:00:42]} 26. Rd1 {[%emt 0:03:10]} Bxc3 {[%emt 0:00:16]} 27. Rxd3 {[%emt 0:01:12]} Bxe1 {[%emt 0:00:02]} 28. Rxe1 {[%emt 0:00:10]} Rc1 {[%emt 0:00:56]} 29. Rdd1 {[%emt 0:00:49]} R1c2 {[%emt 0:00:40]} 30. Rd3 {[%emt 0:00:56]} Rxb2 {[%emt 0:01:09]} 31. Red1 {[%emt 0:00:19]} h5 {[%emt 0:00:30]} 32. Rd8+ {[%emt 0:00:57]} Rxd8 {[%emt 0:00:01]} 33. Rxd8+ {[%emt 0:00:13]} Kh7 {[%emt 0:00:04]} 34. g3 {[%emt 0:00:28]} Rb3 {[%emt 0:00:10]} 35. Rd7 {[%emt 0:00:45]} Kg6 {[%emt 0:00:32]} 36. Ra7 {[%emt 0:00:39]} Rxa3 {[%emt 0:00:15]} 37. Kg1 {[%emt 0:00:26]} Ra2 {[%emt 0:00:24]} 38. h3 {[%emt 0:00:36]} b4 {[%emt 0:04:23]} 39. Rb7 {[%emt 0:01:50]} a5 {[%emt 0:01:13]} 40. Rb5 {[%emt 0:00:31]} f5 {[%emt 0:00:54]} 41. Re5 {[%emt 0:30:50]} Kf6 {[%emt 0:30:09]} 42. Kf1 {[%emt 0:00:53]} b3 {[%emt 0:00:05]} 43. Rb5 {[%emt 0:00:28]} b2 {[%emt 0:00:04]} 0-1

[Event "EYTCC U12 Girls 2019"]
[Site "Pardubice"]
[Date "2019.07.12"]
[Round "2.22"]
[White "Szopa, Emilia"]
[Black "Zadrapova, Amalie"]
[Result "1-0"]
[ECO "B20"]
[WhiteElo "1415"]
[BlackElo "1248"]
[Annotator "NA"]
[PlyCount "69"]
[EventDate "2019.07.11"]
[EventType "swiss"]
[EventCountry "CZE"]
[SourceTitle "playchess.com"]
[Source "ChessBase"]
[SourceQuality "1"]
[WhiteTeam "Poland"]
[BlackTeam "Czech Republic"]
[WhiteTeamCountry "POL"]
[BlackTeamCountry "CZE"]
[TimeControl "40/5400+30:1800+30"]

1. e4 {[%emt 0:00:00]} c5 {[%emt 0:00:00]} 2. Ne2 {[%emt 0:00:00]} d6 {[%emt 0:00:02]} 3. g3 {[%emt 0:00:00]} Nf6 {[%emt 0:01:10]} 4. Bg2 {[%emt 0:00:51]} e6 {[%emt 0:01:04]} 5. O-O {[%emt 0:00:29]} Be7 {[%emt 0:00:39]} 6. c3 {[%emt 0:00:46]} O-O {[%emt 0:02:21]} 7. d4 {[%emt 0:02:19]} Nc6 {[%emt 0:02:34]} 8. Na3 {[%emt 0:09:11]} Re8 {[%emt 0:09:45]} 9. Nc2 {[%emt 0:04:21]} d5 {[%emt 0:05:34]} 10. e5 {[%emt 0:03:34]} Nd7 {[%emt 0:00:47]} 11. f4 {[%emt 0:02:15]} b6 {[%emt 0:05:10]} 12. c4 {[%emt 0:06:26]} Ndb8 {[%emt 0:03:58]} 13. cxd5 {[%emt 0:03:39]} exd5 {[%emt 0:00:43]} 14. dxc5 {[%emt 0:03:23]} Bxc5+ {[%emt 0:01:10]} 15. Be3 {[%emt 0:01:25]} Bxe3+ {[%emt 0:01:29]} 16. Nxe3 {[%emt 0:00:14]} Bb7 {[%emt 0:06:34]} 17. Qxd5 {[%emt 0:03:18]} Qe7 {[%emt 0:04:31]} 18. Nf5 {[%emt 0:02:25]} Qe6 {[%emt 0:04:01]} 19. Qxe6 {[%emt 0:01:07]} fxe6 {[%emt 0:00:13]} 20. Nd6 {[%emt 0:00:13]} Re7 {[%emt 0:00:31]} 21. Nxb7 {[%emt 0:00:09]} Rxb7 {[%emt 0:00:30]} 22. Nd4 {[%emt 0:00:27]} Rc7 {[%emt 0:01:02]} 23. Rac1 {[%emt 0:01:30]} Kf7 {[%emt 0:01:48]} 24. Nxc6 {[%emt 0:02:14]} Nxc6 {[%emt 0:00:28]} 25. Rxc6 {[%emt 0:00:11]} Rxc6 {[%emt 0:00:20]} 26. Bxc6 {[%emt 0:00:08]} Rc8 {[%emt 0:00:11]} 27. Be4 {[%emt 0:00:14]} Rc4 {[%emt 0:01:20]} 28. Bd3 {[%emt 0:03:06]} Rb4 {[%emt 0:02:40]} 29. b3 {[%emt 0:00:45]} Rd4 {[%emt 0:00:36]} 30. Rd1 {[%emt 0:00:09]} Rd5 {[%emt 0:00:33]} 31. Be2 {[%emt 0:00:32]} Ra5 {[%emt 0:00:59]} 32. Bc4 {[%emt 0:02:12]} Rxa2 {[%emt 0:02:11]} 33. Rd7+ {[%emt 0:00:21]} Kg6 {[%emt 0:00:46]} 34. Bxe6 {[%emt 0:01:00]} b5 {[%emt 0:02:24]} 35. Bd5 {[%emt 0:03:18]} 1-0

[Event "EYTCC U12 Girls 2019"]
[Site "Pardubice"]
[Date "2019.07.12"]
[Round "2.23"]
[White "Pohle, Saskia"]
[Black "Ivanova, Dilyana"]
[Result "1/2-1/2"]
[ECO "B90"]
[WhiteElo "1719"]
[BlackElo "1734"]
[Annotator "NA"]
[PlyCount "93"]
[EventDate "2019.07.11"]
[EventType "swiss"]
[EventCountry "CZE"]
[SourceTitle "playchess.com"]
[Source "ChessBase"]
[SourceQuality "1"]
[WhiteTeam "Germany"]
[BlackTeam "Bulgaria"]
[WhiteTeamCountry "GER"]
[BlackTeamCountry "BUL"]
[TimeControl "40/5400+30:1800+30"]

1. e4 {[%emt 0:00:00]} c5 {[%emt 0:00:00]} 2. Nf3 {[%emt 0:00:00]} d6 {[%emt 0:00:00]} 3. d4 {[%emt 0:00:00]} cxd4 {[%emt 0:00:00]} 4. Nxd4 {[%emt 0:00:00]} Nf6 {[%emt 0:00:00]} 5. Nc3 {[%emt 0:00:00]} a6 {[%emt 0:00:02]} 6. Qf3 {[%emt 0:00:07]} e6 {[%emt 0:00:53]} 7. Be3 {[%emt 0:00:18]} Nbd7 {[%emt 0:02:39]} 8. O-O-O {[%emt 0:01:24]} Qc7 {[%emt 0:04:27]} 9. Qg3 {[%emt 0:01:32]} b6 {[%emt 0:09:46]} 10. f3 {[%emt 0:05:27]} Bb7 {[%emt 0:05:39]} 11. a3 {[%emt 0:06:41]} Rc8 {[%emt 0:08:21]} 12. Kb1 {[%emt 0:04:05]} Ne5 {[%emt 0:12:18]} 13. Qf2 {[%emt 0:11:43]} Be7 {[%emt 0:06:20]} 14. g4 {[%emt 0:01:28]} Nc4 {[%emt 0:06:51]} 15. Bxc4 {[%emt 0:00:11]} Qxc4 {[%emt 0:00:05]} 16. h4 {[%emt 0:03:09]} O-O {[%emt 0:10:10]} 17. g5 {[%emt 0:03:28]} Nd7 {[%emt 0:05:58]} 18. h5 {[%emt 0:03:45]} f5 {[%emt 0:06:44]} 19. gxf6 {[%emt 0:11:20]} Nxf6 {[%emt 0:02:40]} 20. Rdg1 {[%emt 0:00:57]} Rf7 {[%emt 0:01:15]} 21. Qg3 {[%emt 0:08:59]} Kh8 {[%emt 0:03:13]} 22. Qh3 {[%emt 0:04:35]} Rc5 {[%emt 0:05:42]} 23. Qxe6 {[%emt 0:03:32]} Qxe6 {[%emt 0:00:09]} 24. Nxe6 {[%emt 0:00:06]} Rxh5 {[%emt 0:01:28]} 25. Bxb6 {[%emt 0:03:17]} Rxh1 {[%emt 0:01:14]} 26. Rxh1 {[%emt 0:00:10]} Nd7 {[%emt 0:00:17]} 27. Bd8 {[%emt 0:03:40]} Bf6 {[%emt 0:02:21]} 28. Bxf6 {[%emt 0:02:41]} Rxf6 {[%emt 0:00:08]} 29. Nd4 {[%emt 0:01:05]} Ne5 {[%emt 0:00:31]} 30. Rf1 {[%emt 0:02:03]} g6 {[%emt 0:01:06]} 31. Nd5 {[%emt 0:03:24]} Bxd5 {[%emt 0:01:00]} 32. exd5 {[%emt 0:00:06]} Nc4 {[%emt 0:00:47]} 33. Re1 {[%emt 0:05:39]} Kg7 {[%emt 0:02:09]} 34. f4 {[%emt 0:00:41]} Kf7 {[%emt 0:00:36]} 35. Ne6 {[%emt 0:00:49]} Nb6 {[%emt 0:00:42]} 36. Ng5+ {[%emt 0:00:47]} Kg8 {[%emt 0:00:29]} 37. Re6 {[%emt 0:03:09]} Nxd5 {[%emt 0:01:12]} 38. Rxf6 {[%emt 0:01:45]} Nxf6 {[%emt 0:00:05]} 39. b4 {[%emt 0:00:23]} h6 {[%emt 0:00:57]} 40. Nh3 {[%emt 0:00:46]} Kf7 {[%emt 0:00:06]} 41. c4 {[%emt 0:31:02]} Ne4 {[%emt 0:30:44]} 42. Kc2 {[%emt 0:01:03]} Ke6 {[%emt 0:00:59]} 43. Kd3 {[%emt 0:01:51]} Ng3 {[%emt 0:00:30]} 44. a4 {[%emt 0:00:00]} Nf5 {[%emt 0:00:00]} 45. a5 {[%emt 0:00:00]} d5 {[%emt 0:00:00]} 46. Nf2 {[%emt 0:00:00]} h5 {[%emt 0:00:00]} 47. Nh3 {[%emt 0:00:00]} 1/2-1/2

[Event "EYTCC U12 Girls 2019"]
[Site "Pardubice"]
[Date "2019.07.12"]
[Round "2.24"]
[White "Karaivanova, Petya"]
[Black "Braeutigam, Katerina"]
[Result "1-0"]
[ECO "B14"]
[WhiteElo "1792"]
[BlackElo "1837"]
[Annotator "NA"]
[PlyCount "99"]
[EventDate "2019.07.11"]
[EventType "swiss"]
[EventCountry "CZE"]
[SourceTitle "playchess.com"]
[Source "ChessBase"]
[SourceQuality "1"]
[WhiteTeam "Bulgaria"]
[BlackTeam "Germany"]
[WhiteTeamCountry "BUL"]
[BlackTeamCountry "GER"]
[TimeControl "40/5400+30:1800+30"]

1. e4 {[%emt 0:00:00]} c6 {[%emt 0:00:00]} 2. d4 {[%emt 0:00:00]} d5 {[%emt 0:00:00]} 3. exd5 {[%emt 0:00:00]} cxd5 {[%emt 0:00:00]} 4. c4 {[%emt 0:00:00]} Nf6 {[%emt 0:00:04]} 5. Nc3 {[%emt 0:00:09]} e6 {[%emt 0:00:09]} 6. Nf3 {[%emt 0:00:19]} Bb4 {[%emt 0:00:33]} 7. Bd2 {[%emt 0:08:59]} dxc4 {[%emt 0:01:04]} 8. Bxc4 {[%emt 0:02:16]} Nc6 {[%emt 0:01:21]} 9. Bb5 {[%emt 0:03:37]} Bd7 {[%emt 0:01:29]} 10. a3 {[%emt 0:03:38]} Be7 {[%emt 0:11:02]} 11. Be3 {[%emt 0:03:31]} a6 {[%emt 0:02:10]} 12. Be2 {[%emt 0:02:17]} Bc8 {[%emt 0:10:25]} 13. O-O {[%emt 0:02:14]} b5 {[%emt 0:02:55]} 14. Qc2 {[%emt 0:04:03]} Bb7 {[%emt 0:00:31]} 15. b4 {[%emt 0:06:45]} O-O {[%emt 0:01:13]} 16. Rfd1 {[%emt 0:01:11]} Rc8 {[%emt 0:06:49]} 17. Qb3 {[%emt 0:02:12]} Nb8 {[%emt 0:05:42]} 18. Rac1 {[%emt 0:03:09]} Nd5 {[%emt 0:01:48]} 19. Nxd5 {[%emt 0:05:39]} Bxd5 {[%emt 0:09:33]} 20. Rxc8 {[%emt 0:04:14]} Qxc8 {[%emt 0:03:19]} 21. Qb2 {[%emt 0:00:25]} Bf6 {[%emt 0:04:19]} 22. Rc1 {[%emt 0:01:11]} Qb7 {[%emt 0:02:15]} 23. Qc3 {[%emt 0:06:38]} Nc6 {[%emt 0:01:12]} 24. Bd1 {[%emt 0:07:21]} Rc8 {[%emt 0:03:46]} 25. Ne1 {[%emt 0:04:33]} h6 {[%emt 0:09:13]} 26. f3 {[%emt 0:03:07]} Rd8 {[%emt 0:02:57]} 27. Nd3 {[%emt 0:02:29]} Bc4 {[%emt 0:03:55]} 28. Ne5 {[%emt 0:05:34]} Bxe5 {[%emt 0:01:19]} 29. dxe5 {[%emt 0:00:11]} Rd3 {[%emt 0:00:08]} 30. Qe1 {[%emt 0:00:06]} Nxe5 {[%emt 0:03:18]} 31. Bxh6 {[%emt 0:02:40]} Qb6+ {[%emt 0:05:11]} 32. Kh1 {[%emt 0:00:10]} Ng6 {[%emt 0:02:38]} 33. Bc2 {[%emt 0:03:32]} Rxa3 {[%emt 0:02:29]} 34. Bxg6 {[%emt 0:01:03]} gxh6 {[%emt 0:01:12]} 35. Be4 {[%emt 0:00:46]} Qe3 {[%emt 0:01:54]} 36. Qg3+ {[%emt 0:00:39]} Qg5 {[%emt 0:00:21]} 37. Qb8+ {[%emt 0:01:12]} Kg7 {[%emt 0:00:10]} 38. Rd1 {[%emt 0:01:29]} Ra2 {[%emt 0:00:20]} 39. f4 {[%emt 0:01:18]} Qf6 {[%emt 0:00:19]} 40. Qd6 {[%emt 0:07:35]} Be2 {[%emt 0:01:31]} 41. Rg1 {[%emt 0:33:05]} Bc4 {[%emt 0:02:34]} 42. Bb1 {[%emt 0:00:00]} Ra1 {[%emt 0:01:52]} 43. Qd2 {[%emt 0:00:00]} Bd5 {[%emt 0:01:59]} 44. Qf2 {[%emt 0:00:00]} Qc3 {[%emt 0:05:29]} 45. f5 {[%emt 0:00:00]} e5 {[%emt 0:13:17]} 46. f6+ {[%emt 0:00:00]} Kg8 {[%emt 0:04:35]} 47. Qf5 {[%emt 0:00:00]} Kf8 {[%emt 0:01:21]} 48. Qd7 {[%emt 0:00:00]} Bxg2+ {[%emt 0:03:06]} 49. Kxg2 {[%emt 0:00:00]} Qb2+ {[%emt 0:00:18]} 50. Kh1 {[%emt 0:00:00]} 1-0

[Event "EYTCC U12 Girls 2019"]
[Site "Pardubice"]
[Date "2019.07.13"]
[Round "3.17"]
[White "Ivanova, Dilyana"]
[Black "Pert, Nina"]
[Result "1-0"]
[ECO "B15"]
[WhiteElo "1734"]
[BlackElo "1452"]
[Annotator "NA"]
[PlyCount "59"]
[EventDate "2019.07.11"]
[EventType "swiss"]
[EventCountry "CZE"]
[SourceTitle "playchess.com"]
[Source "ChessBase"]
[SourceQuality "1"]
[WhiteTeam "Bulgaria"]
[BlackTeam "England"]
[WhiteTeamCountry "BUL"]
[BlackTeamCountry "ENG"]
[TimeControl "40/5400+30:1800+30"]

1. e4 {[%emt 0:00:00]} c6 {[%emt 0:00:00]} 2. d4 {[%emt 0:00:00]} d5 {[%emt 0:00:01]} 3. Nd2 {[%emt 0:00:00]} dxe4 {[%emt 0:00:30]} 4. Nxe4 {[%emt 0:00:00]} Nf6 {[%emt 0:00:46]} 5. Nxf6+ {[%emt 0:01:45]} exf6 {[%emt 0:00:43]} 6. c3 {[%emt 0:01:24]} Bd6 {[%emt 0:01:06]} 7. Bd3 {[%emt 0:02:01]} O-O {[%emt 0:01:32]} 8. Ne2 {[%emt 0:02:51]} h5 {[%emt 0:07:25]} 9. O-O {[%emt 0:06:04]} h4 {[%emt 0:02:55]} 10. Nf4 {[%emt 0:04:39]} f5 {[%emt 0:12:02]} 11. Qh5 {[%emt 0:06:23]} Nd7 {[%emt 0:13:28]} 12. Ng6 {[%emt 0:17:18]} fxg6 {[%emt 0:10:06]} 13. Bc4+ {[%emt 0:00:15]} Rf7 {[%emt 0:01:59]} 14. Qxg6 {[%emt 0:00:20]} Bxh2+ {[%emt 0:02:55]} 15. Kxh2 {[%emt 0:01:12]} Qc7+ {[%emt 0:01:38]} 16. Kg1 {[%emt 0:01:24]} Nf6 {[%emt 0:01:03]} 17. Bxf7+ {[%emt 0:05:07]} Qxf7 {[%emt 0:00:13]} 18. Qxf7+ {[%emt 0:00:30]} Kxf7 {[%emt 0:00:09]} 19. Bg5 {[%emt 0:00:20]} Ne4 {[%emt 0:01:04]} 20. Bf4 {[%emt 0:01:46]} Bd7 {[%emt 0:01:41]} 21. f3 {[%emt 0:01:41]} Nf6 {[%emt 0:00:58]} 22. Rfe1 {[%emt 0:01:32]} Ng8 {[%emt 0:02:08]} 23. Bg5 {[%emt 0:03:18]} Be6 {[%emt 0:02:21]} 24. Re5 {[%emt 0:00:48]} b6 {[%emt 0:01:22]} 25. Bxh4 {[%emt 0:01:01]} g6 {[%emt 0:01:35]} 26. b3 {[%emt 0:00:47]} b5 {[%emt 0:02:57]} 27. Rc5 {[%emt 0:02:50]} Bd7 {[%emt 0:01:31]} 28. d5 {[%emt 0:05:40]} cxd5 {[%emt 0:01:13]} 29. Rc7 {[%emt 0:00:42]} Ke6 {[%emt 0:00:45]} 30. Re1+ {[%emt 0:00:25] Ke7} 1-0

[Event "EYTCC U12 Girls 2019"]
[Site "Pardubice"]
[Date "2019.07.13"]
[Round "3.18"]
[White "Solovieva, Kristina"]
[Black "Karaivanova, Petya"]
[Result "1/2-1/2"]
[ECO "C45"]
[WhiteElo "1469"]
[BlackElo "1792"]
[Annotator "NA"]
[PlyCount "142"]
[EventDate "2019.07.11"]
[EventType "swiss"]
[EventCountry "CZE"]
[SourceTitle "playchess.com"]
[Source "ChessBase"]
[SourceQuality "1"]
[WhiteTeam "England"]
[BlackTeam "Bulgaria"]
[WhiteTeamCountry "ENG"]
[BlackTeamCountry "BUL"]
[TimeControl "40/5400+30:1800+30"]

1. e4 {[%emt 0:00:00]} e5 {[%emt 0:00:00]} 2. Nf3 {[%emt 0:00:00]} Nc6 {[%emt 0:00:00]} 3. d4 {[%emt 0:00:00]} exd4 {[%emt 0:00:00]} 4. Nxd4 {[%emt 0:00:00]} Bc5 {[%emt 0:00:00]} 5. Nb3 {[%emt 0:00:00]} Bb6 {[%emt 0:00:18]} 6. Nc3 {[%emt 0:00:02]} Nf6 {[%emt 0:00:35]} 7. Qe2 {[%emt 0:00:08]} Qe7 {[%emt 0:03:13]} 8. f3 {[%emt 0:01:28]} d6 {[%emt 0:01:49]} 9. Bf4 {[%emt 0:03:01]} Be6 {[%emt 0:03:27]} 10. O-O-O {[%emt 0:01:10]} a6 {[%emt 0:06:56]} 11. Be3 {[%emt 0:04:46]} Ba7 {[%emt 0:04:01]} 12. Kb1 {[%emt 0:02:36]} h6 {[%emt 0:03:22]} 13. Qf2 {[%emt 0:05:53]} Bxe3 {[%emt 0:06:04]} 14. Qxe3 {[%emt 0:00:12]} Ne5 {[%emt 0:03:15]} 15. Qf2 {[%emt 0:09:32]} b5 {[%emt 0:07:57]} 16. Nd5 {[%emt 0:07:05]} Bxd5 {[%emt 0:04:31]} 17. exd5 {[%emt 0:00:15]} O-O {[%emt 0:01:58]} 18. Na5 {[%emt 0:04:29]} Qd8 {[%emt 0:01:59]} 19. b4 {[%emt 0:02:49]} Nfd7 {[%emt 0:03:04]} 20. h4 {[%emt 0:02:48]} Qf6 {[%emt 0:02:22]} 21. Qd4 {[%emt 0:04:55]} Rfe8 {[%emt 0:03:35]} 22. Bd3 {[%emt 0:08:32]} Nxd3 {[%emt 0:02:15]} 23. Qxf6 {[%emt 0:01:48]} Nxf6 {[%emt 0:00:05]} 24. Rxd3 {[%emt 0:00:37]} h5 {[%emt 0:03:38]} 25. Rhd1 Re2 {[%emt 0:05:59]} 26. R3d2 {[%emt 0:05:55]} Rae8 {[%emt 0:01:27]} 27. Nc6 {[%emt 0:03:58]} Nd7 {[%emt 0:03:38]} 28. Kc1 {[%emt 0:02:44]} Nb6 {[%emt 0:01:36]} 29. Rxe2 {[%emt 0:02:44]} Rxe2 {[%emt 0:00:06]} 30. Rd2 {[%emt 0:00:36]} Re1+ {[%emt 0:02:18]} 31. Rd1 {[%emt 0:00:38]} Rxd1+ {[%emt 0:00:29]} 32. Kxd1 {[%emt 0:00:04]} Nxd5 {[%emt 0:00:17]} 33. Kd2 {[%emt 0:00:03]} Nb6 {[%emt 0:02:25]} 34. Nb8 {[%emt 0:01:20]} Nc4+ {[%emt 0:01:06]} 35. Kc3 {[%emt 0:01:13]} Nb6 {[%emt 0:09:17]} 36. Nxa6 {[%emt 0:01:17]} Nd5+ {[%emt 0:00:05]} 37. Kb3 {[%emt 0:01:42]} Kf8 {[%emt 0:00:28]} 38. g3 {[%emt 0:03:51]} c6 {[%emt 0:03:40]} 39. c4 {[%emt 0:01:57]} bxc4+ {[%emt 0:02:00]} 40. Kxc4 {[%emt 0:00:02]} Nb6+ {[%emt 0:03:52]} 41. Kd4 {[%emt 0:30:47]} Nd7 {[%emt 0:30:33]} 42. a4 {[%emt 0:02:57]} Ke8 {[%emt 0:00:32]} 43. b5 {[%emt 0:02:16]} cxb5 {[%emt 0:00:48]} 44. axb5 {[%emt 0:00:23]} Nb6 {[%emt 0:00:31]} 45. Nc7+ {[%emt 0:01:45]} Kd7 {[%emt 0:02:50]} 46. Nd5 {[%emt 0:00:22]} Na4 {[%emt 0:02:41]} 47. Kc4 {[%emt 0:01:34]} Nc5 {[%emt 0:00:22]} 48. Kb4 {[%emt 0:01:37]} Nb7 {[%emt 0:00:53]} 49. Kc4 {[%emt 0:01:03]} Na5+ {[%emt 0:00:15]} 50. Kb4 {[%emt 0:00:38]} Nb7 {[%emt 0:00:19]} 51. Kc4 {[%emt 0:00:05]} Na5+ {[%emt 0:00:00]} 52. Kb4 {[%emt 0:00:00]} Nb7 {[%emt 0:00:00]} 53. Kc4 {[%emt 0:00:00]} Nc5 {[%emt 0:00:00]} 54. Kb4 {[%emt 0:00:00]} Nb7 {[%emt 0:00:00]} 55. Kc4 {[%emt 0:00:00]} g6 {[%emt 0:00:00]} 56. Kd4 {[%emt 0:00:00]} Ke6 {[%emt 0:00:00]} 57. Nf4+ {[%emt 0:00:00]} Kd7 {[%emt 0:00:00]} 58. Nd5 {[%emt 0:00:00]} Nc5 {[%emt 0:00:00]} 59. Kc4 {[%emt 0:00:00]} Nb7 {[%emt 0:00:00]} 60. Kd4 {[%emt 0:00:00]} Na5 {[%emt 0:00:00]} 61. Kc3 {[%emt 0:00:00]} Ke6 {[%emt 0:00:00]} 62. Kb4 {[%emt 0:00:00]} Nb7 {[%emt 0:00:00]} 63. Kc4 {[%emt 0:00:00]} Nc5 {[%emt 0:00:00]} 64. b6 {[%emt 0:00:00]} f6 {[%emt 0:00:00]} 65. Nf4+ {[%emt 0:00:00]} Kf5 {[%emt 0:00:00]} 66. Nd3 {[%emt 0:00:00]} Nb7 {[%emt 0:00:00]} 67. Kd5 {[%emt 0:00:00]} g5 {[%emt 0:00:00]} 68. Kc6 {[%emt 0:00:00]} Na5+ {[%emt 0:00:00]} 69. Kxd6 {[%emt 0:00:00]} g4 {[%emt 0:00:00]} 70. fxg4+ {[%emt 0:00:00]} Kxg4 {[%emt 0:00:00]} 71. Nf4 {[%emt 0:00:00]} Kxg3 {[%emt 0:00:38]} 1/2-1/2